[Event "Titled Tuesday Blitz August 15 Late 2023"]
[White "FuenfgegenWilly"]
[Black "GaiozNigalidze"]
[WhiteElo "2415"]
[BlackElo "2716"]
[Result "0-1"]
[Round "4"]
[TimeControl "180+1"]
[Date "2023.08.15"]
[WhiteClock "0:00:00"]
[BlackClock "0:00:19"]
[Board "103"]

1. e4 {[%clk 0:03:00]}  c5 {[%clk 0:02:59]} 2. Nc3 {[%clk 0:03:00]}  Nc6 {[%clk 0:03:00]} 3. f4 {[%clk 0:03:01]}  e6 {[%clk 0:03:00]} 4. Nf3 {[%clk 0:03:01]}  a6 {[%clk 0:02:58]} 5. d3 {[%clk 0:02:56]}  d5 {[%clk 0:02:56]} 6. g3 {[%clk 0:02:55]}  Nf6 {[%clk 0:02:53]} 7. e5 {[%clk 0:02:55]}  d4 {[%clk 0:02:44]} 8. Bg2 {[%clk 0:02:56]}  dxc3 {[%clk 0:02:37]} 9. exf6 {[%clk 0:02:56]}  Qxf6 {[%clk 0:02:29]} 10. bxc3 {[%clk 0:02:55]}  Qxc3+ {[%clk 0:02:28]} 11. Bd2 {[%clk 0:02:56]}  Qf6 {[%clk 0:02:27]} 12. O-O {[%clk 0:02:56]}  Be7 {[%clk 0:02:20]} 13. Qe1 {[%clk 0:02:48]}  O-O {[%clk 0:02:10]} 14. Ne5 {[%clk 0:02:32]}  Nd4 {[%clk 0:01:57]} 15. Ng4 {[%clk 0:02:19]}  Qf5 {[%clk 0:01:51]} 16. Ne3 {[%clk 0:02:18]}  Qg6 {[%clk 0:01:50]} 17. c3 {[%clk 0:02:14]}  Nb5 {[%clk 0:01:38]} 18. Be4 {[%clk 0:02:11]}  f5 {[%clk 0:01:28]} 19. Bg2 {[%clk 0:02:08]}  Bf6 {[%clk 0:01:28]} 20. a4 {[%clk 0:02:06]}  Nd6 {[%clk 0:01:28]} 21. Rb1 {[%clk 0:01:56]}  Qf7 {[%clk 0:01:27]} 22. Qf2 {[%clk 0:01:48]}  Qc7 {[%clk 0:01:25]} 23. Nc4 {[%clk 0:01:37]}  Nxc4 {[%clk 0:01:15]} 24. dxc4 {[%clk 0:01:37]}  Rb8 {[%clk 0:01:09]} 25. Be3 {[%clk 0:01:35]}  Be7 {[%clk 0:01:08]} 26. Rb3 {[%clk 0:01:01]}  Bd7 {[%clk 0:00:48]} 27. Rfb1 {[%clk 0:00:57]}  b6 {[%clk 0:00:43]} 28. a5 {[%clk 0:00:50]}  bxa5 {[%clk 0:00:39]} 29. Rb7 {[%clk 0:00:50]}  Rxb7 {[%clk 0:00:26]} 30. Rxb7 {[%clk 0:00:51]}  Qd6 {[%clk 0:00:27]} 31. Qe1 {[%clk 0:00:08]}  Rd8 {[%clk 0:00:25]} 32. h4 {[%clk 0:00:06]}  a4 {[%clk 0:00:25]} 33. Kh2 {[%clk 0:00:05]}  Be8 {[%clk 0:00:19]} 34. Qb1 {[%clk 0:00:04]}  Kf8 {[%clk 0:00:15]} 35. Rb6 {[%clk 0:00:03]}  Qd3 {[%clk 0:00:15]} 36. Bg1 {[%clk 0:00:02]}  Qxb1 {[%clk 0:00:14]} 37. Rxb1 {[%clk 0:00:03]}  Rd3 {[%clk 0:00:15]} 38. Re1 {[%clk 0:00:02]}  Kf7 {[%clk 0:00:14]} 39. Re3 {[%clk 0:00:01]}  Rxe3 {[%clk 0:00:14]} 40. Bxe3 {[%clk 0:00:02]}  a3 {[%clk 0:00:15]} 41. Bc1 {[%clk 0:00:02]}  a2 {[%clk 0:00:15]} 42. Bb2 {[%clk 0:00:02]}  Ba4 {[%clk 0:00:16]} 43. Ba1 {[%clk 0:00:02]}  Bb3 {[%clk 0:00:16]} 44. Bf1 {[%clk 0:00:02]}  e5 {[%clk 0:00:17]} 45. fxe5 {[%clk 0:00:02]}  Ke6 {[%clk 0:00:17]} 46. Kg2 {[%clk 0:00:03]}  Kxe5 {[%clk 0:00:18]} 47. Kf3 {[%clk 0:00:04]}  g5 {[%clk 0:00:18]} 48. hxg5 {[%clk 0:00:03]}  Bxg5 {[%clk 0:00:18]} 49. Ke2 {[%clk 0:00:03]}  a5 {[%clk 0:00:19]} 50. Kd3 {[%clk 0:00:03]}  a4 {[%clk 0:00:19]} 51. Bg2 {[%clk 0:00:03]}  Bc1 {[%clk 0:00:19]} 52. Bf3 {[%clk 0:00:02]}  a3 {[%clk 0:00:19]} 53. Bd1 {[%clk 0:00:00]}  Bxd1 {[%clk 0:00:19]} 0-1


[Site "https://www.chess.com"]

[Event "Titled Tuesday Blitz August 15 Late 2023"]
[White "Rego, Pedro Filipe"]
[Black "Fiorito, Joaquin"]
[WhiteFideId "1904310"]
[BlackFideId "180173"]
[WhiteElo "2416"]
[BlackElo "2673"]
[Result "1-0"]
[Round "4"]
[TimeControl "180+1"]
[Date "2023.08.15"]
[WhiteClock "0:00:13"]
[BlackClock "0:00:34"]
[Board "104"]

1. c4 {[%clk 0:03:00]}  Nf6 {[%clk 0:02:59]} 2. Nf3 {[%clk 0:02:58]}  e6 {[%clk 0:03:00]} 3. d4 {[%clk 0:02:58]}  d5 {[%clk 0:03:00]} 4. g3 {[%clk 0:02:58]}  Bb4+ {[%clk 0:03:00]} 5. Bd2 {[%clk 0:02:59]}  a5 {[%clk 0:03:00]} 6. Bg2 {[%clk 0:02:58]}  O-O {[%clk 0:03:00]} 7. O-O {[%clk 0:02:57]}  dxc4 {[%clk 0:03:01]} 8. Bg5 {[%clk 0:02:55]}  h6 {[%clk 0:02:58]} 9. Bxf6 {[%clk 0:02:52]}  Qxf6 {[%clk 0:02:59]} 10. a3 {[%clk 0:02:52]}  Bd6 {[%clk 0:02:57]} 11. Nbd2 {[%clk 0:02:52]}  b5 {[%clk 0:02:56]} 12. Ne4 {[%clk 0:02:47]}  Qe7 {[%clk 0:02:55]} 13. a4 {[%clk 0:02:47]}  b4 {[%clk 0:02:53]} 14. Nfd2 {[%clk 0:02:46]}  Bb7 {[%clk 0:02:45]} 15. Nxc4 {[%clk 0:02:43]}  Nd7 {[%clk 0:02:45]} 16. Nexd6 {[%clk 0:02:35]}  Bxg2 {[%clk 0:02:45]} 17. Nf5 {[%clk 0:02:33]}  exf5 {[%clk 0:02:45]} 18. Kxg2 {[%clk 0:02:33]}  c5 {[%clk 0:02:45]} 19. Qd3 {[%clk 0:02:16]}  cxd4 {[%clk 0:02:44]} 20. Qxd4 {[%clk 0:02:04]}  Nc5 {[%clk 0:02:45]} 21. Qe5 {[%clk 0:01:58]}  Qb7+ {[%clk 0:02:39]} 22. f3 {[%clk 0:01:54]}  Ne6 {[%clk 0:02:37]} 23. Rfd1 {[%clk 0:01:50]}  Rad8 {[%clk 0:02:15]} 24. Rd6 {[%clk 0:01:35]}  Rxd6 {[%clk 0:02:13]} 25. Nxd6 {[%clk 0:01:33]}  Qc7 {[%clk 0:02:13]} 26. Rd1 {[%clk 0:01:24]}  Rd8 {[%clk 0:02:10]} 27. Rd3 {[%clk 0:01:00]}  Qc2 {[%clk 0:01:54]} 28. Kf2 {[%clk 0:00:33]}  f4 {[%clk 0:01:45]} 29. gxf4 {[%clk 0:00:31]}  Qxa4 {[%clk 0:01:37]} 30. f5 {[%clk 0:00:28]}  Nf8 {[%clk 0:01:37]} 31. Qe7 {[%clk 0:00:25]}  Qd7 {[%clk 0:01:28]} 32. f6 {[%clk 0:00:23]}  gxf6 {[%clk 0:01:12]} 33. Qxf6 {[%clk 0:00:23]}  Ng6 {[%clk 0:01:10]} 34. Nf5 {[%clk 0:00:21]}  Qa7+ {[%clk 0:01:04]} 35. e3 {[%clk 0:00:18]}  Qd4 {[%clk 0:00:34]} 36. Rxd4 {[%clk 0:00:13]} 1-0


[Site "https://www.chess.com"]

[Event "Titled Tuesday Blitz August 15 Late 2023"]
[White "Yang, Cayden"]
[Black "KorolDimitriy75"]
[WhiteFideId "30967260"]
[WhiteElo "2584"]
[BlackElo "2401"]
[Result "1/2-1/2"]
[Round "4"]
[TimeControl "180+1"]
[Date "2023.08.15"]
[WhiteClock "0:00:08"]
[BlackClock "0:00:04"]
[Board "107"]

1. Nf3 {[%clk 0:03:00]}  c5 {[%clk 0:02:59]} 2. g3 {[%clk 0:02:54]}  g6 {[%clk 0:02:59]} 3. Bg2 {[%clk 0:02:50]}  Bg7 {[%clk 0:03:00]} 4. O-O {[%clk 0:02:49]}  Nc6 {[%clk 0:03:00]} 5. c4 {[%clk 0:02:49]}  Nh6 {[%clk 0:03:00]} 6. Nc3 {[%clk 0:02:46]}  Nf5 {[%clk 0:03:00]} 7. d3 {[%clk 0:02:41]}  h5 {[%clk 0:02:59]} 8. h4 {[%clk 0:02:30]}  a6 {[%clk 0:02:58]} 9. Rb1 {[%clk 0:02:28]}  Rb8 {[%clk 0:02:58]} 10. a4 {[%clk 0:02:21]}  d6 {[%clk 0:02:56]} 11. Bd2 {[%clk 0:02:18]}  Bd7 {[%clk 0:02:55]} 12. Re1 {[%clk 0:02:15]}  O-O {[%clk 0:02:52]} 13. Ne4 {[%clk 0:02:10]}  b5 {[%clk 0:02:49]} 14. axb5 {[%clk 0:02:09]}  axb5 {[%clk 0:02:50]} 15. Bc3 {[%clk 0:02:07]}  bxc4 {[%clk 0:02:40]} 16. Bxg7 {[%clk 0:02:06]}  Kxg7 {[%clk 0:02:39]} 17. dxc4 {[%clk 0:02:07]}  Qa5 {[%clk 0:02:36]} 18. Bh3 {[%clk 0:01:54]}  Rb7 {[%clk 0:02:26]} 19. Nc3 {[%clk 0:01:45]}  Nxh4 {[%clk 0:01:24]} 20. Bxd7 {[%clk 0:01:32]}  Nxf3+ {[%clk 0:01:23]} 21. exf3 {[%clk 0:01:33]}  Rxd7 {[%clk 0:01:23]} 22. Nd5 {[%clk 0:01:34]}  e6 {[%clk 0:01:17]} 23. Nf4 {[%clk 0:01:34]}  Nd4 {[%clk 0:01:14]} 24. b4 {[%clk 0:01:34]}  Qa2 {[%clk 0:00:41]} 25. Nd3 {[%clk 0:01:30]}  Qxc4 {[%clk 0:00:12]} 26. bxc5 {[%clk 0:01:29]}  e5 {[%clk 0:00:07]} 27. cxd6 {[%clk 0:01:29]}  f6 {[%clk 0:00:07]} 28. Re3 {[%clk 0:00:50]}  Rxd6 {[%clk 0:00:07]} 29. Rc1 {[%clk 0:00:50]}  Qd5 {[%clk 0:00:06]} 30. Nb4 {[%clk 0:00:49]}  Qb7 {[%clk 0:00:05]} 31. Nd3 {[%clk 0:00:45]}  Rfd8 {[%clk 0:00:05]} 32. Ne1 {[%clk 0:00:41]}  Nf5 {[%clk 0:00:04]} 33. Rd3 {[%clk 0:00:41]}  Nd4 {[%clk 0:00:03]} 34. Kh2 {[%clk 0:00:37]}  R6d7 {[%clk 0:00:03]} 35. Kh3 {[%clk 0:00:28]}  Kh7 {[%clk 0:00:03]} 36. Kg2 {[%clk 0:00:29]}  Rd6 {[%clk 0:00:02]} 37. Qd2 {[%clk 0:00:29]}  Qd7 {[%clk 0:00:02]} 38. Qa5 {[%clk 0:00:21]}  Qf7 {[%clk 0:00:02]} 39. Rcd1 {[%clk 0:00:21]}  R8d7 {[%clk 0:00:02]} 40. Qb4 {[%clk 0:00:20]}  Qe6 {[%clk 0:00:02]} 41. Qb2 {[%clk 0:00:20]}  Qf5 {[%clk 0:00:02]} 42. Qd2 {[%clk 0:00:20]}  Qe6 {[%clk 0:00:02]} 43. Qe3 {[%clk 0:00:21]}  Qd5 {[%clk 0:00:03]} 44. Kh3 {[%clk 0:00:17]}  Qe6+ {[%clk 0:00:02]} 45. Kg2 {[%clk 0:00:18]}  Nf5 {[%clk 0:00:02]} 46. Qe4 {[%clk 0:00:17]}  Nd4 {[%clk 0:00:02]} 47. f4 {[%clk 0:00:17]}  Qd5 {[%clk 0:00:01]} 48. Qxd5 {[%clk 0:00:17]}  Rxd5 {[%clk 0:00:02]} 49. fxe5 {[%clk 0:00:17]}  fxe5 {[%clk 0:00:02]} 50. Nc2 {[%clk 0:00:14]}  Kg7 {[%clk 0:00:02]} 51. Ne3 {[%clk 0:00:13]}  R5d6 {[%clk 0:00:02]} 52. Nc4 {[%clk 0:00:13]}  Rd5 {[%clk 0:00:02]} 53. Nxe5 {[%clk 0:00:13]}  Rxe5 {[%clk 0:00:02]} 54. Rxd4 {[%clk 0:00:14]}  Rxd4 {[%clk 0:00:03]} 55. Rxd4 {[%clk 0:00:15]}  Re7 {[%clk 0:00:03]} 56. Rd6 {[%clk 0:00:15]}  Rf7 {[%clk 0:00:04]} 57. f4 {[%clk 0:00:15]}  Re7 {[%clk 0:00:05]} 58. Kf3 {[%clk 0:00:15]}  Ra7 {[%clk 0:00:05]} 59. Rd3 {[%clk 0:00:16]}  Ra6 {[%clk 0:00:05]} 60. Ke4 {[%clk 0:00:16]}  Ra4+ {[%clk 0:00:05]} 61. Ke5 {[%clk 0:00:17]}  Ra5+ {[%clk 0:00:05]} 62. Rd5 {[%clk 0:00:17]}  Ra3 {[%clk 0:00:05]} 63. Rd7+ {[%clk 0:00:11]}  Kh6 {[%clk 0:00:04]} 64. Kf6 {[%clk 0:00:11]}  Rxg3 {[%clk 0:00:04]} 65. Rd8 {[%clk 0:00:12]}  Kh7 {[%clk 0:00:04]} 66. Rd7+ {[%clk 0:00:12]}  Kh6 {[%clk 0:00:04]} 67. Rd8 {[%clk 0:00:13]}  Kh7 {[%clk 0:00:04]} 68. Rd7+ {[%clk 0:00:08]}  Kh6 {[%clk 0:00:04]} 1/2-1/2


[Site "https://www.chess.com"]

[Event "Titled Tuesday Blitz August 15 Late 2023"]
[White "Gamayev, Oleg"]
[Black "Wafa, Shrook"]
[WhiteFideId "2802813"]
[BlackFideId "10609970"]
[WhiteElo "2582"]
[BlackElo "2400"]
[Result "0-1"]
[Round "4"]
[TimeControl "180+1"]
[Date "2023.08.15"]
[WhiteClock "0:01:58"]
[BlackClock "0:01:52"]
[Board "108"]

1. d3 {[%clk 0:02:53]}  d5 {[%clk 0:02:59]} 2. e4 {[%clk 0:02:53]}  dxe4 {[%clk 0:02:59]} 3. dxe4 {[%clk 0:02:54]}  Qxd1+ {[%clk 0:03:00]} 4. Kxd1 {[%clk 0:02:55]}  Nc6 {[%clk 0:03:00]} 5. Nf3 {[%clk 0:02:55]}  Bg4 {[%clk 0:03:00]} 6. Be2 {[%clk 0:02:55]}  O-O-O+ {[%clk 0:03:00]} 7. Nfd2 {[%clk 0:02:56]}  Bxe2+ {[%clk 0:03:00]} 8. Kxe2 {[%clk 0:02:57]}  e5 {[%clk 0:03:00]} 9. c3 {[%clk 0:02:57]}  Bc5 {[%clk 0:03:00]} 10. f3 {[%clk 0:02:57]}  a5 {[%clk 0:02:59]} 11. Nb3 {[%clk 0:02:57]}  Bb6 {[%clk 0:02:59]} 12. a4 {[%clk 0:02:57]}  Nge7 {[%clk 0:02:59]} 13. N1d2 {[%clk 0:02:56]}  f5 {[%clk 0:02:49]} 14. Nc4 {[%clk 0:02:54]}  fxe4 {[%clk 0:02:49]} 15. fxe4 {[%clk 0:02:55]}  Rhf8 {[%clk 0:02:50]} 16. Nxb6+ {[%clk 0:02:55]}  cxb6 {[%clk 0:02:50]} 17. Be3 {[%clk 0:02:56]}  Kc7 {[%clk 0:02:50]} 18. Nd2 {[%clk 0:02:56]}  Ng6 {[%clk 0:02:22]} 19. g3 {[%clk 0:02:56]}  Nce7 {[%clk 0:02:21]} 20. Nc4 {[%clk 0:02:56]}  Nc8 {[%clk 0:02:21]} 21. Ra3 {[%clk 0:02:55]}  Kc6 {[%clk 0:02:21]} 22. Rb3 {[%clk 0:02:56]}  Rf6 {[%clk 0:02:17]} 23. Nxb6 {[%clk 0:02:40]}  Nd6 {[%clk 0:02:16]} 24. Nd5 {[%clk 0:02:34]}  Nxe4 {[%clk 0:02:16]} 25. Nxf6 {[%clk 0:02:34]}  gxf6 {[%clk 0:02:16]} 26. Rb6+ {[%clk 0:02:30]}  Kd5 {[%clk 0:02:16]} 27. Rb5+ {[%clk 0:02:30]}  Kc6 {[%clk 0:02:15]} 28. Rxa5 {[%clk 0:02:27]}  f5 {[%clk 0:02:16]} 29. Rd1 {[%clk 0:02:23]}  Re8 {[%clk 0:02:04]} 30. Rb5 {[%clk 0:02:22]}  f4 {[%clk 0:02:03]} 31. Bg1 {[%clk 0:02:11]}  fxg3 {[%clk 0:02:02]} 32. hxg3 {[%clk 0:02:11]}  Nxg3+ {[%clk 0:02:03]} 33. Kf3 {[%clk 0:02:11]}  Nf5 {[%clk 0:02:01]} 34. Rb6+ {[%clk 0:02:08]}  Kc7 {[%clk 0:02:01]} 35. Ke4 {[%clk 0:02:08]}  Ng3+ {[%clk 0:01:58]} 36. Kf3 {[%clk 0:02:08]}  Nf5 {[%clk 0:01:58]} 37. Rd5 {[%clk 0:02:04]}  e4+ {[%clk 0:01:57]} 38. Ke2 {[%clk 0:01:58]}  Nf4+ {[%clk 0:01:52]} 0-1


[Site "https://www.chess.com"]

[Event "Titled Tuesday Blitz August 15 Late 2023"]
[White "Graif, William"]
[Black "Melikhov, Evgeny V."]
[WhiteFideId "2609835"]
[BlackFideId "4122046"]
[WhiteElo "2566"]
[BlackElo "2397"]
[Result "0-1"]
[Round "4"]
[TimeControl "180+1"]
[Date "2023.08.15"]
[WhiteClock "0:00:00"]
[BlackClock "0:00:37"]
[Board "111"]

1. e4 {[%clk 0:03:00]}  e5 {[%clk 0:02:59]} 2. Nf3 {[%clk 0:03:00]}  Nc6 {[%clk 0:02:59]} 3. d4 {[%clk 0:03:00]}  exd4 {[%clk 0:02:59]} 4. c3 {[%clk 0:03:01]}  d3 {[%clk 0:02:55]} 5. Bxd3 {[%clk 0:02:58]}  d6 {[%clk 0:02:54]} 6. O-O {[%clk 0:02:56]}  Nf6 {[%clk 0:02:54]} 7. Re1 {[%clk 0:02:26]}  Be7 {[%clk 0:02:53]} 8. Bg5 {[%clk 0:02:24]}  O-O {[%clk 0:02:53]} 9. Na3 {[%clk 0:02:17]}  Bg4 {[%clk 0:02:49]} 10. Nc2 {[%clk 0:02:08]}  Bxf3 {[%clk 0:02:45]} 11. Qxf3 {[%clk 0:02:07]}  Ne5 {[%clk 0:02:46]} 12. Qh3 {[%clk 0:02:04]}  Nxd3 {[%clk 0:02:45]} 13. Qxd3 {[%clk 0:02:05]}  Ng4 {[%clk 0:02:41]} 14. Bxe7 {[%clk 0:01:45]}  Qxe7 {[%clk 0:02:40]} 15. Qg3 {[%clk 0:01:45]}  Nf6 {[%clk 0:02:24]} 16. Nd4 {[%clk 0:01:36]}  Nh5 {[%clk 0:02:10]} 17. Nf5 {[%clk 0:01:12]}  Qe5 {[%clk 0:01:48]} 18. Qg4 {[%clk 0:01:03]}  g6 {[%clk 0:01:48]} 19. Rad1 {[%clk 0:00:58]}  Qf4 {[%clk 0:01:40]} 20. Qh3 {[%clk 0:00:32]}  Rae8 {[%clk 0:01:28]} 21. Ng3 {[%clk 0:00:22]}  Nxg3 {[%clk 0:01:24]} 22. hxg3 {[%clk 0:00:23]}  Qf6 {[%clk 0:01:17]} 23. f4 {[%clk 0:00:18]}  Re7 {[%clk 0:01:08]} 24. Re2 {[%clk 0:00:15]}  Rfe8 {[%clk 0:01:08]} 25. Rde1 {[%clk 0:00:16]}  d5 {[%clk 0:01:04]} 26. e5 {[%clk 0:00:15]}  Qf5 {[%clk 0:01:03]} 27. Qxf5 {[%clk 0:00:15]}  gxf5 {[%clk 0:01:04]} 28. Kf2 {[%clk 0:00:16]}  Kg7 {[%clk 0:00:56]} 29. Rh1 {[%clk 0:00:15]}  h6 {[%clk 0:00:54]} 30. Rhe1 {[%clk 0:00:14]}  Kg6 {[%clk 0:00:53]} 31. Kf3 {[%clk 0:00:14]}  c5 {[%clk 0:00:47]} 32. Rd1 {[%clk 0:00:13]}  Rd7 {[%clk 0:00:45]} 33. Red2 {[%clk 0:00:13]}  Red8 {[%clk 0:00:45]} 34. c4 {[%clk 0:00:12]}  d4 {[%clk 0:00:45]} 35. Rd3 {[%clk 0:00:11]}  f6 {[%clk 0:00:42]} 36. e6 {[%clk 0:00:09]}  Re7 {[%clk 0:00:42]} 37. Re1 {[%clk 0:00:08]}  Rd6 {[%clk 0:00:42]} 38. Rd2 {[%clk 0:00:05]}  Rdxe6 {[%clk 0:00:41]} 39. Rxe6 {[%clk 0:00:03]}  Rxe6 {[%clk 0:00:42]} 40. b4 {[%clk 0:00:02]}  Re3+ {[%clk 0:00:40]} 41. Kf2 {[%clk 0:00:03]}  b6 {[%clk 0:00:39]} 42. bxc5 {[%clk 0:00:02]}  bxc5 {[%clk 0:00:40]} 43. Rb2 {[%clk 0:00:02]}  Rc3 {[%clk 0:00:40]} 44. Rb7 {[%clk 0:00:01]}  Rxc4 {[%clk 0:00:39]} 45. Rxa7 {[%clk 0:00:02]}  Rc2+ {[%clk 0:00:39]} 46. Kf1 {[%clk 0:00:02]}  d3 {[%clk 0:00:39]} 47. Rd7 {[%clk 0:00:02]}  c4 {[%clk 0:00:39]} 48. a4 {[%clk 0:00:02]}  d2 {[%clk 0:00:38]} 49. Ke2 {[%clk 0:00:03]}  c3 {[%clk 0:00:38]} 50. Rd3 {[%clk 0:00:01]}  Rc1 {[%clk 0:00:38]} 51. a5 {[%clk 0:00:01]}  Re1+ {[%clk 0:00:37]} 52. Kf2 {[%clk 0:00:00]}  d1=Q {[%clk 0:00:37]} 0-1


[Site "https://www.chess.com"]

[Event "Titled Tuesday Blitz August 15 Late 2023"]
[White "chessmateto"]
[Black "Zavgorodniy, Sergiy"]
[BlackFideId "14110148"]
[WhiteElo "2393"]
[BlackElo "2557"]
[Result "1-0"]
[Round "4"]
[TimeControl "180+1"]
[Date "2023.08.15"]
[WhiteClock "0:00:45"]
[BlackClock "0:02:03"]
[Board "113"]

1. c4 {[%clk 0:03:00]}  c5 {[%clk 0:02:57]} 2. Nc3 {[%clk 0:03:00]}  Nc6 {[%clk 0:02:57]} 3. Nf3 {[%clk 0:02:59]}  g6 {[%clk 0:02:56]} 4. g3 {[%clk 0:02:59]}  Bg7 {[%clk 0:02:55]} 5. Bg2 {[%clk 0:03:00]}  e6 {[%clk 0:02:55]} 6. O-O {[%clk 0:03:00]}  Nge7 {[%clk 0:02:55]} 7. e3 {[%clk 0:02:58]}  O-O {[%clk 0:02:55]} 8. b3 {[%clk 0:02:58]}  d5 {[%clk 0:02:55]} 9. Bb2 {[%clk 0:02:55]}  d4 {[%clk 0:02:54]} 10. exd4 {[%clk 0:02:54]}  Nxd4 {[%clk 0:02:54]} 11. Nxd4 {[%clk 0:02:52]}  Bxd4 {[%clk 0:02:54]} 12. Na4 {[%clk 0:02:51]}  Bxb2 {[%clk 0:02:54]} 13. Nxb2 {[%clk 0:02:52]}  Qd4 {[%clk 0:02:53]} 14. Qc2 {[%clk 0:02:47]}  Rd8 {[%clk 0:02:53]} 15. Rad1 {[%clk 0:02:43]}  Nf5 {[%clk 0:02:53]} 16. Na4 {[%clk 0:02:37]}  Rb8 {[%clk 0:02:52]} 17. Nc3 {[%clk 0:02:23]}  b6 {[%clk 0:02:52]} 18. Nb5 {[%clk 0:02:22]}  Qd7 {[%clk 0:02:51]} 19. Qb2 {[%clk 0:02:00]}  a6 {[%clk 0:02:51]} 20. Nc3 {[%clk 0:02:00]}  Nd4 {[%clk 0:02:50]} 21. Rfe1 {[%clk 0:01:56]}  Bb7 {[%clk 0:02:50]} 22. Ne4 {[%clk 0:01:56]}  Qe7 {[%clk 0:02:45]} 23. b4 {[%clk 0:01:47]}  f5 {[%clk 0:02:44]} 24. bxc5 {[%clk 0:01:24]}  Bxe4 {[%clk 0:02:40]} 25. Bxe4 {[%clk 0:01:13]}  fxe4 {[%clk 0:02:41]} 26. Rxe4 {[%clk 0:01:00]}  bxc5 {[%clk 0:02:40]} 27. Qa3 {[%clk 0:00:58]}  Nf3+ {[%clk 0:02:34]} 28. Qxf3 {[%clk 0:00:56]}  Rb2 {[%clk 0:02:29]} 29. Qe3 {[%clk 0:00:51]}  Rxa2 {[%clk 0:02:22]} 30. Rxe6 {[%clk 0:00:50]}  Qd7 {[%clk 0:02:23]} 31. Re1 {[%clk 0:00:47]}  Qxd2 {[%clk 0:02:19]} 32. Re8+ {[%clk 0:00:46]}  Kg7 {[%clk 0:02:04]} 33. Qe7+ {[%clk 0:00:44]}  Kh6 {[%clk 0:02:03]} 34. Qh4+ {[%clk 0:00:45]}  Kg7 {[%clk 0:02:03]} 35. R1e7# {[%clk 0:00:45]} 1-0


[Site "https://www.chess.com"]

[Event "Titled Tuesday Blitz August 15 Late 2023"]
[White "Topalov, Aleksandar"]
[Black "Shapiro, Viktor"]
[WhiteFideId "925659"]
[BlackFideId "4175700"]
[WhiteElo "2374"]
[BlackElo "2543"]
[Result "0-1"]
[Round "4"]
[TimeControl "180+1"]
[Date "2023.08.15"]
[WhiteClock "0:00:00"]
[BlackClock "0:00:12"]
[Board "117"]

1. b3 {[%clk 0:03:00]}  Nf6 {[%clk 0:02:53]} 2. Bb2 {[%clk 0:03:00]}  d5 {[%clk 0:02:53]} 3. Nf3 {[%clk 0:02:59]}  Bf5 {[%clk 0:02:53]} 4. g3 {[%clk 0:02:59]}  Nbd7 {[%clk 0:02:53]} 5. Bg2 {[%clk 0:02:59]}  e6 {[%clk 0:02:53]} 6. O-O {[%clk 0:02:59]}  h6 {[%clk 0:02:52]} 7. d3 {[%clk 0:02:59]}  Be7 {[%clk 0:02:52]} 8. e4 {[%clk 0:02:57]}  dxe4 {[%clk 0:02:50]} 9. dxe4 {[%clk 0:02:57]}  Bxe4 {[%clk 0:02:50]} 10. Nbd2 {[%clk 0:02:54]}  Bc6 {[%clk 0:02:49]} 11. Qe2 {[%clk 0:02:48]}  O-O {[%clk 0:02:48]} 12. Rad1 {[%clk 0:02:48]}  a5 {[%clk 0:02:47]} 13. a3 {[%clk 0:02:47]}  Qc8 {[%clk 0:02:43]} 14. Nc4 {[%clk 0:02:40]}  Rd8 {[%clk 0:02:42]} 15. h3 {[%clk 0:02:36]}  b5 {[%clk 0:02:39]} 16. Nce5 {[%clk 0:02:26]}  Nxe5 {[%clk 0:02:39]} 17. Nxe5 {[%clk 0:02:26]}  Bxg2 {[%clk 0:02:38]} 18. Kxg2 {[%clk 0:02:26]}  Qb7+ {[%clk 0:02:38]} 19. Kh2 {[%clk 0:02:27]}  a4 {[%clk 0:02:23]} 20. b4 {[%clk 0:02:26]}  c5 {[%clk 0:02:21]} 21. bxc5 {[%clk 0:02:14]}  Bxc5 {[%clk 0:02:17]} 22. f4 {[%clk 0:01:53]}  b4 {[%clk 0:02:08]} 23. axb4 {[%clk 0:01:50]}  Bxb4 {[%clk 0:02:08]} 24. Nd3 {[%clk 0:01:44]}  Be7 {[%clk 0:02:08]} 25. f5 {[%clk 0:01:44]}  exf5 {[%clk 0:01:52]} 26. Rxf5 {[%clk 0:01:40]}  a3 {[%clk 0:01:51]} 27. Ba1 {[%clk 0:01:40]}  Qe4 {[%clk 0:01:42]} 28. Qf2 {[%clk 0:01:33]}  Rd5 {[%clk 0:01:35]} 29. Rf4 {[%clk 0:01:27]}  Qh7 {[%clk 0:01:12]} 30. Re1 {[%clk 0:01:25]}  Rd7 {[%clk 0:00:59]} 31. Qe2 {[%clk 0:00:46]}  Rf8 {[%clk 0:00:42]} 32. Qf3 {[%clk 0:00:29]}  Rc7 {[%clk 0:00:31]} 33. Re2 {[%clk 0:00:28]}  Rfc8 {[%clk 0:00:21]} 34. Qf2 {[%clk 0:00:19]}  Qg6 {[%clk 0:00:12]} 35. Ne5 {[%clk 0:00:16]}  Qxc2 {[%clk 0:00:12]} 36. Rxc2 {[%clk 0:00:00]}  Rxc2 {[%clk 0:00:12]} 0-1


[Site "https://www.chess.com"]